[Event "*** Titled Tuesday Blitz"]
[Site "Chess.com"]
[Date "2018.06.05"]
[Round "7"]
[White "BlackBoarder"]
[Black "LuisFSiles"]
[Result "1-0"]
[WhiteElo "2269"]
[BlackElo "2134"]
[TimeControl "180+2"]
[EndTime "14:43:35 PDT"]
[Termination "BlackBoarder won by checkmate"]

1. e4 {[%clk 0:02:44.3]} 1... e5 {[%clk 0:02:57.9]} 2. Nf3 {[%clk 0:02:44.8]}
2... Nc6 {[%clk 0:02:55.5]} 3. d4 {[%clk 0:02:45.8]} 3... exd4 {[%clk
0:02:52.2]} 4. Bc4 {[%clk 0:02:46.4]} 4... Nf6 {[%clk 0:02:43.9]} 5. O-O {[%clk
0:02:46.6]} 5... Nxe4 {[%clk 0:02:40.5]} 6. Re1 {[%clk 0:02:45.6]} 6... d5
{[%clk 0:02:40.9]} 7. Bxd5 {[%clk 0:02:46.8]} 7... Qxd5 {[%clk 0:02:42.8]} 8.
Nc3 {[%clk 0:02:42.2]} 8... Qh5 {[%clk 0:02:42.6]} 9. Nxe4 {[%clk 0:02:42.9]}
9... Be6 {[%clk 0:02:43.8]} 10. Bg5 {[%clk 0:02:43.7]} 10... Bd6 {[%clk
0:02:44.3]} 11. Nxd6+ {[%clk 0:02:32.4]} 11... cxd6 {[%clk 0:02:46.2]} 12. Bf4
{[%clk 0:02:33.7]} 12... Kd7 {[%clk 0:02:31.2]} 13. Nxd4 {[%clk 0:02:30.8]}
13... Qd5 {[%clk 0:02:25.4]} 14. Nxe6 {[%clk 0:02:23.9]} 14... fxe6 {[%clk
0:02:18.2]} 15. Qxd5 {[%clk 0:02:24.9]} 15... exd5 {[%clk 0:02:18]} 16. Rad1
{[%clk 0:02:26]} 16... d4 {[%clk 0:02:18.7]} 17. c3 {[%clk 0:02:23.3]} 17...
Rae8 {[%clk 0:02:13.7]} 18. Rxe8 {[%clk 0:01:42.6]} 18... Rxe8 {[%clk
0:02:12.1]} 19. cxd4 {[%clk 0:01:43.7]} 19... Nxd4 {[%clk 0:02:12.1]} 20. Kf1
{[%clk 0:01:43.9]} 20... Re4 {[%clk 0:02:04.4]} 21. Be3 {[%clk 0:01:42.9]} 21...
Nc6 {[%clk 0:01:58.9]} 22. Ke2 {[%clk 0:01:38.3]} 22... Ke6 {[%clk 0:01:55.7]}
23. Kf3 {[%clk 0:01:25.3]} 23... d5 {[%clk 0:01:54.4]} 24. b3 {[%clk 0:01:08.3]}
24... Ne5+ {[%clk 0:01:53.3]} 25. Ke2 {[%clk 0:01:08.3]} 25... Nc6 {[%clk
0:01:39.9]} 26. f3 {[%clk 0:01:07.1]} 26... Rh4 {[%clk 0:01:35.1]} 27. h3 {[%clk
0:01:05.1]} 27... d4 {[%clk 0:01:34.5]} 28. Bf2 {[%clk 0:01:02.3]} 28... Rf4
{[%clk 0:01:27.6]} 29. g3 {[%clk 0:01:01.6]} 29... Rf5 {[%clk 0:01:19.2]} 30.
Bxd4 {[%clk 0:01:01.4]} 30... g6 {[%clk 0:01:19.1]} 31. Be3 {[%clk 0:00:56.8]}
31... Ra5 {[%clk 0:01:15.3]} 32. a4 {[%clk 0:00:54.7]} 32... b5 {[%clk
0:01:14.2]} 33. axb5 {[%clk 0:00:55.8]} 33... Rxb5 {[%clk 0:01:15]} 34. Rd3
{[%clk 0:00:50.7]} 34... Na5 {[%clk 0:01:12.9]} 35. Bxa7 {[%clk 0:00:48.5]}
35... Rxb3 {[%clk 0:01:12.8]} 36. Rd2 {[%clk 0:00:26.2]} 36... Nc4 {[%clk
0:01:09.4]} 37. Rc2 {[%clk 0:00:25.4]} 37... Rb2 {[%clk 0:01:09]} 38. Rxb2
{[%clk 0:00:25.2]} 38... Nxb2 {[%clk 0:01:10.6]} 39. Ke3 {[%clk 0:00:25.1]}
39... Nc4+ {[%clk 0:01:07.5]} 40. Kf4 {[%clk 0:00:25.7]} 40... Nd6 {[%clk
0:01:06]} 41. g4 {[%clk 0:00:24.8]} 41... Nf7 {[%clk 0:01:04.2]} 42. h4 {[%clk
0:00:22.3]} 42... h6 {[%clk 0:00:56.2]} 43. Be3 {[%clk 0:00:19.1]} 43... Ne5
{[%clk 0:00:51.9]} 44. Ke4 {[%clk 0:00:18.6]} 44... Nf7 {[%clk 0:00:52.2]} 45.
f4 {[%clk 0:00:14.3]} 45... Nd6+ {[%clk 0:00:50.1]} 46. Kf3 {[%clk 0:00:12.9]}
46... h5 {[%clk 0:00:51.5]} 47. Bd4 {[%clk 0:00:09.6]} 47... Nf7 {[%clk
0:00:50.5]} 48. Bg7 {[%clk 0:00:09.1]} 48... Nd6 {[%clk 0:00:44.3]} 49. f5+
{[%clk 0:00:07.7]} 49... gxf5 {[%clk 0:00:42.8]} 50. gxh5 {[%clk 0:00:08.9]}
50... Kf7 {[%clk 0:00:43.4]} 51. h6 {[%clk 0:00:09.7]} 51... Kg6 {[%clk
0:00:43.3]} 52. Kf4 {[%clk 0:00:09.6]} 52... Nf7 {[%clk 0:00:39.7]} 53. h5+
{[%clk 0:00:05.4]} 53... Kh7 {[%clk 0:00:35.7]} 54. Kxf5 {[%clk 0:00:05]} 54...
Nxh6+ {[%clk 0:00:36.3]} 55. Kg5 {[%clk 0:00:06.2]} 55... Ng8 {[%clk 0:00:36.3]}
56. Bf8 {[%clk 0:00:04.4]} 56... Kh8 {[%clk 0:00:35.5]} 57. Kg6 {[%clk
0:00:03.9]} 57... Nh6 {[%clk 0:00:27.4]} 58. Bxh6 {[%clk 0:00:04.2]} 58... Kg8
{[%clk 0:00:27.9]} 59. Bg5 {[%clk 0:00:05.7]} 59... Kh8 {[%clk 0:00:27.7]} 60.
h6 {[%clk 0:00:07.6]} 60... Kg8 {[%clk 0:00:28.9]} 61. h7+ {[%clk 0:00:09.2]}
61... Kh8 {[%clk 0:00:30]} 62. Bf6# {[%clk 0:00:10.4]} 1-0

[Event "*** Titled Tuesday Blitz"]
[Site "Chess.com"]
[Date "2018.06.05"]
[Round "7"]
[White "twitchTriniCupid"]
[Black "ama18"]
[Result "1/2-1/2"]
[WhiteElo "2241"]
[BlackElo "2238"]
[TimeControl "180+2"]
[EndTime "14:43:57 PDT"]
[Termination "Game drawn - insufficient material"]

1. d4 {[%clk 0:03:01.9]} 1... e6 {[%clk 0:03:00.3]} 2. Nf3 {[%clk 0:03:01.6]}
2... Nf6 {[%clk 0:02:59.1]} 3. c4 {[%clk 0:03:02.2]} 3... Bb4+ {[%clk
0:02:58.8]} 4. Bd2 {[%clk 0:03:02.4]} 4... a5 {[%clk 0:02:59.3]} 5. Nc3 {[%clk
0:03:01.7]} 5... b6 {[%clk 0:02:57.7]} 6. Rc1 {[%clk 0:03:02.5]} 6... Bb7 {[%clk
0:02:56.6]} 7. e3 {[%clk 0:03:01.3]} 7... O-O {[%clk 0:02:54.8]} 8. Bd3 {[%clk
0:03:00.5]} 8... Bxc3 {[%clk 0:02:55.9]} 9. Rxc3 {[%clk 0:03:00.9]} 9... Ne4
{[%clk 0:02:57.7]} 10. Rc1 {[%clk 0:02:52.5]} 10... f5 {[%clk 0:02:55.3]} 11.
O-O {[%clk 0:02:52.4]} 11... Rf6 {[%clk 0:02:55.3]} 12. Ne1 {[%clk 0:02:16]}
12... Rh6 {[%clk 0:02:45]} 13. g3 {[%clk 0:02:14.7]} 13... Ng5 {[%clk
0:01:41.5]} 14. f3 {[%clk 0:01:58.9]} 14... Rh3 {[%clk 0:01:38.1]} 15. Qe2
{[%clk 0:01:53.5]} 15... Qf6 {[%clk 0:01:28.5]} 16. Qg2 {[%clk 0:01:53.1]} 16...
d6 {[%clk 0:01:26.3]} 17. e4 {[%clk 0:01:53.1]} 17... Rh5 {[%clk 0:01:04.7]} 18.
h4 {[%clk 0:01:44.3]} 18... Nf7 {[%clk 0:00:56.9]} 19. Bc3 {[%clk 0:01:34.1]}
19... g5 {[%clk 0:00:53.5]} 20. e5 {[%clk 0:01:18.3]} 20... dxe5 {[%clk
0:00:37.2]} 21. dxe5 {[%clk 0:01:17.8]} 21... Qe7 {[%clk 0:00:35.1]} 22. g4
{[%clk 0:00:44.7]} 22... fxg4 {[%clk 0:00:22.5]} 23. Qxg4 {[%clk 0:00:46.6]}
23... Rxh4 {[%clk 0:00:22.5]} 24. Qg3 {[%clk 0:00:47.7]} 24... Nd7 {[%clk
0:00:18.6]} 25. Ng2 {[%clk 0:00:48]} 25... Rh6 {[%clk 0:00:17]} 26. Rce1 {[%clk
0:00:44.7]} 26... Qc5+ {[%clk 0:00:17.8]} 27. Qf2 {[%clk 0:00:45]} 27... Qxf2+
{[%clk 0:00:18.2]} 28. Kxf2 {[%clk 0:00:46.9]} 28... Nc5 {[%clk 0:00:19.4]} 29.
Bc2 {[%clk 0:00:47.2]} 29... Rd8 {[%clk 0:00:19.5]} 30. Rd1 {[%clk 0:00:46.8]}
30... Rxd1 {[%clk 0:00:17.4]} 31. Rxd1 {[%clk 0:00:48.7]} 31... Kf8 {[%clk
0:00:18.6]} 32. Kg3 {[%clk 0:00:46.4]} 32... Ke7 {[%clk 0:00:16.5]} 33. Ne3
{[%clk 0:00:43.5]} 33... Nd7 {[%clk 0:00:11.1]} 34. Ng4 {[%clk 0:00:41.7]} 34...
Rh5 {[%clk 0:00:11.9]} 35. a3 {[%clk 0:00:37.9]} 35... Rh4 {[%clk 0:00:12.2]}
36. b4 {[%clk 0:00:36.7]} 36... axb4 {[%clk 0:00:11.4]} 37. axb4 {[%clk
0:00:38.6]} 37... h5 {[%clk 0:00:11.8]} 38. Ne3 {[%clk 0:00:17.9]} 38... Ndxe5
{[%clk 0:00:11.8]} 39. c5 {[%clk 0:00:18.9]} 39... Nxf3 {[%clk 0:00:11.1]} 40.
cxb6 {[%clk 0:00:18.8]} 40... cxb6 {[%clk 0:00:12.9]} 41. Ra1 {[%clk 0:00:17.8]}
41... N3e5 {[%clk 0:00:13.5]} 42. Ra7 {[%clk 0:00:18]} 42... Nd6 {[%clk
0:00:14]} 43. Bxe5 {[%clk 0:00:18.3]} 43... Rxb4 {[%clk 0:00:11.8]} 44. Bxd6+
{[%clk 0:00:17.6]} 44... Kxd6 {[%clk 0:00:13.2]} 45. Rxb7 {[%clk 0:00:19.1]}
45... h4+ {[%clk 0:00:14.4]} 46. Kf3 {[%clk 0:00:19.7]} 46... Ke5 {[%clk
0:00:14.7]} 47. Rg7 {[%clk 0:00:18.5]} 47... Rf4+ {[%clk 0:00:15.2]} 48. Ke2
{[%clk 0:00:18.9]} 48... h3 {[%clk 0:00:11.9]} 49. Rxg5+ {[%clk 0:00:19.5]}
49... Kd4 {[%clk 0:00:12.7]} 50. Rh5 {[%clk 0:00:19.1]} 50... b5 {[%clk
0:00:13.1]} 51. Rxh3 {[%clk 0:00:18.4]} 51... b4 {[%clk 0:00:14.2]} 52. Rh5
{[%clk 0:00:19.4]} 52... e5 {[%clk 0:00:14.2]} 53. Rh7 {[%clk 0:00:19.6]} 53...
Rf6 {[%clk 0:00:12.5]} 54. Rb7 {[%clk 0:00:20.3]} 54... Kc3 {[%clk 0:00:13.3]}
55. Nd5+ {[%clk 0:00:21.5]} 55... Kxc2 {[%clk 0:00:14.1]} 56. Nxf6 {[%clk
0:00:23.1]} 56... b3 {[%clk 0:00:15.9]} 57. Nd5 {[%clk 0:00:21.7]} 57... b2
{[%clk 0:00:16.5]} 58. Nc3 {[%clk 0:00:18.7]} 58... Kxc3 {[%clk 0:00:16.2]} 59.
Kd1 {[%clk 0:00:19.8]} 59... e4 {[%clk 0:00:15.5]} 60. Rc7+ {[%clk 0:00:20.5]}
60... Kb3 {[%clk 0:00:15.9]} 61. Rb7+ {[%clk 0:00:21.4]} 61... Kc3 {[%clk
0:00:16.8]} 62. Rc7+ {[%clk 0:00:20.9]} 62... Kb3 {[%clk 0:00:17.5]} 63. Rb7+
{[%clk 0:00:22.1]} 63... Kc3 {[%clk 0:00:18.6]} 64. Ke2 {[%clk 0:00:21]} 64...
Kc2 {[%clk 0:00:16.8]} 65. Rc7+ {[%clk 0:00:21.8]} 65... Kb3 {[%clk 0:00:17.4]}
66. Rb7+ {[%clk 0:00:22.8]} 66... Kc2 {[%clk 0:00:17.7]} 67. Rc7+ {[%clk
0:00:22.1]} 67... Kb3 {[%clk 0:00:18.6]} 68. Ke3 {[%clk 0:00:19.4]} 68... b1=Q
{[%clk 0:00:18.3]} 69. Rb7+ {[%clk 0:00:20.7]} 69... Kc2 {[%clk 0:00:18.7]} 70.
Rxb1 {[%clk 0:00:22.6]} 70... Kxb1 {[%clk 0:00:20.3]} 71. Kxe4 {[%clk
0:00:24.5]} 1/2-1/2

[Event "*** Titled Tuesday Blitz"]
[Site "Chess.com"]
[Date "2018.06.05"]
[Round "7"]
[White "Flawless2018"]
[Black "nabukatnezarr"]
[Result "1-0"]
[WhiteElo "2491"]
[BlackElo "2327"]
[TimeControl "180+2"]
[EndTime "14:44:09 PDT"]
[Termination "Flawless2018 won by resignation"]

1. e4 {[%clk 0:03:01.9]} 1... c6 {[%clk 0:02:59.8]} 2. d4 {[%clk 0:02:57.1]}
2... d5 {[%clk 0:03:00.7]} 3. Nc3 {[%clk 0:02:59]} 3... dxe4 {[%clk 0:03:01.5]}
4. Nxe4 {[%clk 0:03:00.9]} 4... Bf5 {[%clk 0:03:03]} 5. Ng3 {[%clk 0:03:02.2]}
5... Bg6 {[%clk 0:03:04.1]} 6. h4 {[%clk 0:03:03.5]} 6... h6 {[%clk 0:03:04.7]}
7. Nf3 {[%clk 0:03:03.8]} 7... Nd7 {[%clk 0:03:05.2]} 8. h5 {[%clk 0:03:04.6]}
8... Bh7 {[%clk 0:03:06.6]} 9. Bd3 {[%clk 0:03:06.5]} 9... Bxd3 {[%clk
0:03:07.3]} 10. Qxd3 {[%clk 0:03:08.4]} 10... e6 {[%clk 0:03:08.8]} 11. Bd2
{[%clk 0:03:09.1]} 11... Ngf6 {[%clk 0:03:10.3]} 12. O-O-O {[%clk 0:03:09.5]}
12... Bd6 {[%clk 0:03:10.2]} 13. Kb1 {[%clk 0:02:56.5]} 13... Bc7 {[%clk
0:03:09.3]} 14. Ne4 {[%clk 0:02:52.1]} 14... Nxe4 {[%clk 0:03:09.9]} 15. Qxe4
{[%clk 0:02:51]} 15... Nf6 {[%clk 0:03:10.7]} 16. Qe2 {[%clk 0:02:50.5]} 16...
Qd5 {[%clk 0:03:01.8]} 17. c4 {[%clk 0:02:48.7]} 17... Qe4+ {[%clk 0:02:52.4]}
18. Qxe4 {[%clk 0:02:38.8]} 18... Nxe4 {[%clk 0:02:54.3]} 19. Be3 {[%clk
0:02:40.1]} 19... b5 {[%clk 0:02:53.6]} 20. cxb5 {[%clk 0:02:39.3]} 20... cxb5
{[%clk 0:02:55.5]} 21. d5 {[%clk 0:02:39.4]} 21... exd5 {[%clk 0:02:54.5]} 22.
Rxd5 {[%clk 0:02:41.3]} 22... a6 {[%clk 0:02:39]} 23. Ne5 {[%clk 0:02:41.2]}
23... Nf6 {[%clk 0:02:31.8]} 24. Rc5 {[%clk 0:02:26.3]} 24... Bd6 {[%clk
0:02:32.2]} 25. Rd1 {[%clk 0:02:23.7]} 25... Bxc5 {[%clk 0:02:26.9]} 26. Bxc5
{[%clk 0:02:24.4]} 26... Ne4 {[%clk 0:02:13.6]} 27. Ba3 {[%clk 0:02:22.2]} 27...
Ng5 {[%clk 0:02:06.9]} 28. f4 {[%clk 0:02:19.3]} 28... Ne4 {[%clk 0:02:03.9]}
29. Rd7 {[%clk 0:02:16.3]} 29... f6 {[%clk 0:01:57.9]} 30. Re7+ {[%clk
0:02:11.5]} 30... Kf8 {[%clk 0:01:49.4]} 31. Ng6+ {[%clk 0:02:12.7]} 31... Kg8
{[%clk 0:01:49.6]} 32. Nxh8 {[%clk 0:02:14.6]} 32... Nd2+ {[%clk 0:01:49.9]} 33.
Kc1 {[%clk 0:02:14.3]} 33... Nc4 {[%clk 0:01:49.8]} 34. Ng6 {[%clk 0:02:12.5]}
34... Rc8 {[%clk 0:01:46]} 35. Kd1 {[%clk 0:02:11.6]} 35... a5 {[%clk
0:01:42.5]} 36. Ra7 {[%clk 0:02:00.1]} 36... Rd8+ {[%clk 0:01:40.9]} 37. Ke2
{[%clk 0:02:00.6]} 37... b4 {[%clk 0:01:41.7]} 38. Bxb4 {[%clk 0:01:58.2]} 38...
axb4 {[%clk 0:01:40.7]} 39. b3 {[%clk 0:01:59.7]} 39... Nd6 {[%clk 0:01:33.6]}
40. Kf3 {[%clk 0:01:56.7]} 40... Rb8 {[%clk 0:01:22.9]} 41. g4 {[%clk 0:01:57]}
41... Nb5 {[%clk 0:01:22.4]} 42. Ra4 {[%clk 0:01:56.5]} 42... Nc3 {[%clk
0:01:23]} 43. Ra7 {[%clk 0:01:55.5]} 43... Rd8 {[%clk 0:01:21.4]} 44. g5 {[%clk
0:01:51.8]} 44... hxg5 {[%clk 0:01:21.4]} 45. fxg5 {[%clk 0:01:53.7]} 45... fxg5
{[%clk 0:01:22.8]} 46. Kg4 {[%clk 0:01:54.5]} 46... Ne4 {[%clk 0:01:11.2]} 47.
Ne7+ {[%clk 0:01:53.5]} 47... Kh7 {[%clk 0:01:10.6]} 48. Nf5 {[%clk 0:01:51.9]}
48... Nf2+ {[%clk 0:00:52.5]} 49. Kxg5 {[%clk 0:01:50.8]} 49... Rd5 {[%clk
0:00:50.6]} 50. Rxg7+ {[%clk 0:01:49.9]} 50... Kh8 {[%clk 0:00:51.8]} 51. Rb7
{[%clk 0:01:50.9]} 51... Ne4+ {[%clk 0:00:48.3]} 52. Kg6 {[%clk 0:01:50.6]}
52... Rd8 {[%clk 0:00:41.2]} 53. h6 {[%clk 0:01:52]} 53... Rg8+ {[%clk
0:00:40.7]} 54. Kf7 {[%clk 0:01:52.1]} 54... Rg5 {[%clk 0:00:38.8]} 55. Rb8+
{[%clk 0:01:49.3]} 55... Kh7 {[%clk 0:00:39.1]} 56. Rb5 {[%clk 0:01:25.7]} 56...
Rh5 {[%clk 0:00:31.6]} 57. Ke6 {[%clk 0:01:22.8]} 57... Ng3 {[%clk 0:00:19.5]}
58. Rb7+ {[%clk 0:01:20.5]} 58... Kh8 {[%clk 0:00:19.7]} 59. Nxg3 {[%clk
0:01:21.9]} 59... Rg5 {[%clk 0:00:20.5]} 60. Nf5 {[%clk 0:01:20.2]} 60... Rg6+
{[%clk 0:00:21]} 61. Ke5 {[%clk 0:01:19.8]} 61... Rg5 {[%clk 0:00:21.7]} 62.
Rxb4 {[%clk 0:01:19.5]} 62... Rg6 {[%clk 0:00:22.4]} 63. a4 {[%clk 0:01:19.6]}
63... Ra6 {[%clk 0:00:23.3]} 64. Rb7 {[%clk 0:01:18.7]} 64... Ra5+ {[%clk
0:00:23.8]} 65. Ke6 {[%clk 0:01:17.3]} 65... Ra6+ {[%clk 0:00:25.7]} 66. Kf7
{[%clk 0:01:16]} 66... Ra5 {[%clk 0:00:25.5]} 67. Rb5 {[%clk 0:01:11.8]} 67...
Ra6 {[%clk 0:00:25.2]} 68. b4 {[%clk 0:01:12.2]} 68... Rxa4 {[%clk 0:00:26]} 69.
Rb7 {[%clk 0:01:09.4]} 69... Ra1 {[%clk 0:00:26.7]} 70. b5 {[%clk 0:01:10.2]}
70... Rf1 {[%clk 0:00:27.9]} 71. Kf6 {[%clk 0:01:10.1]} 71... Rc1 {[%clk
0:00:26.2]} 72. b6 {[%clk 0:01:07.6]} 72... Rc6+ {[%clk 0:00:27.3]} 73. Kg5
{[%clk 0:01:07.7]} 73... Rc5 {[%clk 0:00:28]} 74. Rc7 {[%clk 0:01:01.3]} 74...
Rb5 {[%clk 0:00:24.3]} 75. b7 {[%clk 0:00:59.6]} 75... Rb6 {[%clk 0:00:21]} 76.
Rc8+ {[%clk 0:00:58.4]} 76... Kh7 {[%clk 0:00:22.4]} 77. Rc7+ {[%clk 0:00:45.3]}
77... Kh8 {[%clk 0:00:22.4]} 78. Ne7 {[%clk 0:00:37.5]} 78... Rb5+ {[%clk
0:00:19]} 79. Kf6 {[%clk 0:00:32.5]} 79... Rxb7 {[%clk 0:00:17.8]} 80. Rxb7
{[%clk 0:00:30.1]} 1-0

[Event "*** Titled Tuesday Blitz"]
[Site "Chess.com"]
[Date "2018.06.05"]
[Round "7"]
[White "Shaman91"]
[Black "SCIM"]
[Result "0-1"]
[WhiteElo "2554"]
[BlackElo "2420"]
[TimeControl "180+2"]
[EndTime "14:44:53 PDT"]
[Termination "SCIM won by resignation"]

1. e4 {[%clk 0:03:01.8]} 1... e5 {[%clk 0:02:58.6]} 2. Bc4 {[%clk 0:03:00.2]}
2... Nf6 {[%clk 0:02:58.3]} 3. d3 {[%clk 0:03:01.1]} 3... Bc5 {[%clk 0:02:53]}
4. Nf3 {[%clk 0:02:59.8]} 4... d6 {[%clk 0:02:52.4]} 5. O-O {[%clk 0:02:58.3]}
5... Nc6 {[%clk 0:02:50.6]} 6. c3 {[%clk 0:02:57.5]} 6... a6 {[%clk 0:02:49.5]}
7. a4 {[%clk 0:02:57.4]} 7... Ba7 {[%clk 0:02:48.2]} 8. Re1 {[%clk 0:02:51.2]}
8... h6 {[%clk 0:02:44.8]} 9. Nbd2 {[%clk 0:02:50.4]} 9... Be6 {[%clk
0:02:29.1]} 10. Bxe6 {[%clk 0:02:48.2]} 10... fxe6 {[%clk 0:02:29.3]} 11. b4
{[%clk 0:02:49.5]} 11... O-O {[%clk 0:02:25.8]} 12. Nc4 {[%clk 0:02:49]} 12...
b5 {[%clk 0:02:20.4]} 13. Ne3 {[%clk 0:02:41.1]} 13... Qd7 {[%clk 0:02:04.5]}
14. Bd2 {[%clk 0:02:35.8]} 14... d5 {[%clk 0:01:44.7]} 15. Nc2 {[%clk
0:02:24.8]} 15... Rad8 {[%clk 0:01:26.7]} 16. axb5 {[%clk 0:02:12.1]} 16... axb5
{[%clk 0:01:26.1]} 17. Be3 {[%clk 0:02:10.7]} 17... Bxe3 {[%clk 0:01:22.3]} 18.
Nxe3 {[%clk 0:02:12.5]} 18... dxe4 {[%clk 0:01:20.7]} 19. dxe4 {[%clk
0:02:14.3]} 19... Qxd1 {[%clk 0:01:17.7]} 20. Nxd1 {[%clk 0:02:10.7]} 20... Rd6
{[%clk 0:01:08.3]} 21. Nb2 {[%clk 0:02:08.5]} 21... Rfd8 {[%clk 0:01:04.4]} 22.
g3 {[%clk 0:02:06.8]} 22... g5 {[%clk 0:01:01.7]} 23. h3 {[%clk 0:02:05.5]}
23... Kg7 {[%clk 0:00:54.3]} 24. Kg2 {[%clk 0:02:04.7]} 24... Nd7 {[%clk
0:00:44.4]} 25. Re3 {[%clk 0:02:00.6]} 25... Nb6 {[%clk 0:00:43.2]} 26. Ra6
{[%clk 0:01:53.3]} 26... Kf6 {[%clk 0:00:37.7]} 27. Kf1 {[%clk 0:01:48.8]} 27...
h5 {[%clk 0:00:28.3]} 28. Ne1 {[%clk 0:01:44.4]} 28... Rd2 {[%clk 0:00:27.5]}
29. Re2 {[%clk 0:01:42.1]} 29... Nb8 {[%clk 0:00:23.2]} 30. Ra7 {[%clk
0:01:39.2]} 30... Rxe2 {[%clk 0:00:21.9]} 31. Kxe2 {[%clk 0:01:39.1]} 31... Rd7
{[%clk 0:00:23.3]} 32. Ned3 {[%clk 0:01:37.3]} 32... Nc6 {[%clk 0:00:24]} 33.
Ra1 {[%clk 0:01:34.5]} 33... Rd6 {[%clk 0:00:24.9]} 34. Rh1 {[%clk 0:01:33.9]}
34... Rd7 {[%clk 0:00:25.5]} 35. Ra1 {[%clk 0:01:27.8]} 35... Rd6 {[%clk
0:00:26.3]} 36. Nc5 {[%clk 0:01:29]} 36... Rd8 {[%clk 0:00:21.9]} 37. Rh1 {[%clk
0:01:21.8]} 37... Rd6 {[%clk 0:00:22.8]} 38. h4 {[%clk 0:01:19.1]} 38... g4
{[%clk 0:00:23.1]} 39. Nbd3 {[%clk 0:01:15.7]} 39... Nc4 {[%clk 0:00:19.9]} 40.
f3 {[%clk 0:01:16.7]} 40... gxf3+ {[%clk 0:00:19.3]} 41. Kxf3 {[%clk 0:01:18.4]}
41... Nd2+ {[%clk 0:00:20.2]} 42. Ke3 {[%clk 0:01:19.6]} 42... Nc4+ {[%clk
0:00:21.3]} 43. Ke2 {[%clk 0:01:20.8]} 43... Rd8 {[%clk 0:00:19.2]} 44. Rf1+
{[%clk 0:01:20.8]} 44... Kg6 {[%clk 0:00:19.1]} 45. Ra1 {[%clk 0:01:08.2]} 45...
Kf6 {[%clk 0:00:14.9]} 46. Ra6 {[%clk 0:01:07]} 46... Rd6 {[%clk 0:00:14.4]} 47.
Nb7 {[%clk 0:01:05.1]} 47... Nd4+ {[%clk 0:00:12.3]} 48. cxd4 {[%clk 0:00:50.5]}
48... Rxa6 {[%clk 0:00:13.6]} 49. dxe5+ {[%clk 0:00:42.8]} 49... Nxe5 {[%clk
0:00:14.3]} 50. Nf4 {[%clk 0:00:40.7]} 50... Ra2+ {[%clk 0:00:14.8]} 51. Ke3
{[%clk 0:00:37]} 51... Ra3+ {[%clk 0:00:14.9]} 52. Kf2 {[%clk 0:00:37.4]} 52...
Ng4+ {[%clk 0:00:14.6]} 53. Kg2 {[%clk 0:00:38.1]} 53... Ra2+ {[%clk 0:00:14.8]}
54. Kg1 {[%clk 0:00:37.5]} 54... Ke5 {[%clk 0:00:14.6]} 55. Nc5 {[%clk 0:00:37]}
55... Ra1+ {[%clk 0:00:13.6]} 56. Kg2 {[%clk 0:00:37.4]} 56... Ra2+ {[%clk
0:00:14.4]} 57. Kg1 {[%clk 0:00:38.4]} 57... Ne3 {[%clk 0:00:12.6]} 58. Ncxe6
{[%clk 0:00:34]} 58... Kxe4 {[%clk 0:00:12]} 59. Ng5+ {[%clk 0:00:34.6]} 59...
Kf5 {[%clk 0:00:10.7]} 60. Nxh5 {[%clk 0:00:26.7]} 60... Rg2+ {[%clk 0:00:11]}
61. Kh1 {[%clk 0:00:27]} 61... Rb2 {[%clk 0:00:12.4]} 62. Nf4 {[%clk 0:00:13.6]}
62... Rxb4 {[%clk 0:00:12.7]} 63. Kh2 {[%clk 0:00:13.3]} 63... Rb2+ {[%clk
0:00:13.2]} 64. Kh3 {[%clk 0:00:13.8]} 64... b4 {[%clk 0:00:14.1]} 65. Nf3
{[%clk 0:00:13]} 65... c5 {[%clk 0:00:12.6]} 66. Nd3 {[%clk 0:00:13.2]} 66...
Rc2 {[%clk 0:00:11]} 67. Nfe1 {[%clk 0:00:13.7]} 67... Rc3 {[%clk 0:00:11.1]}
68. h5 {[%clk 0:00:14.5]} 68... b3 {[%clk 0:00:10.7]} 69. Kh4 {[%clk 0:00:15]}
69... Ng2+ {[%clk 0:00:10.3]} 70. Nxg2 {[%clk 0:00:14.3]} 70... Rxd3 {[%clk
0:00:11.5]} 71. g4+ {[%clk 0:00:16]} 71... Ke6 {[%clk 0:00:11.2]} 72. Nf4+
{[%clk 0:00:12.9]} 72... Kd6 {[%clk 0:00:05.7]} 73. Nxd3 {[%clk 0:00:14.6]}
73... c4 {[%clk 0:00:06.7]} 74. Nb2 {[%clk 0:00:04.5]} 74... c3 {[%clk
0:00:07.3]} 75. Nd3 {[%clk 0:00:03.9]} 75... b2 {[%clk 0:00:07.3]} 76. h6 {[%clk
0:00:04.8]} 76... b1=Q {[%clk 0:00:07.2]} 77. Nf4 {[%clk 0:00:06.6]} 77... Qh1+
{[%clk 0:00:07]} 78. Kg5 {[%clk 0:00:07.2]} 78... c2 {[%clk 0:00:08.3]} 79. Nh5
{[%clk 0:00:07.3]} 79... c1=Q+ {[%clk 0:00:08.1]} 80. Kg6 {[%clk 0:00:09.1]}
80... Qc2+ {[%clk 0:00:09.4]} 81. Kg5 {[%clk 0:00:09.6]} 81... Qc3 {[%clk
0:00:10.5]} 82. Nf4 {[%clk 0:00:09.4]} 82... Qe5+ {[%clk 0:00:11.2]} 0-1